Workbook

Sheet Home
C3: The Courtauld

Sheet Introduction
A1: Cost of Attendance - How to use this spreadsheet
A3: This spreadsheet is to help you and us
A4: a. To make the process as speedy and as simple as possible
A5: b. To cut out the risk of your application being rejected and you having to start again
A6: You should also use the flowchart from our website to see the order in which you need to do each stage of your application
A8: There is nothing which tells the school that everything the applicant needs to do has been completed.
A9: There is nothing which tells the applicant that everything they need to do has been completed.
A10: Information sent by the US Dept of Ed to schools also includes all those who may not apply or enroll.
A11: There are some documents which we have to receive before we can even start to certify or complete your loans
A13: You must complete and send us the spreadsheet "Cost of Attendance" tab
A15: It is used to help you and the school in several ways
A16: 1. You tell us what we need to know about you before we can start to process your application (Section 1)
A17: 2. You can re-calculate your costs (Sections 2 & 3) and if needed you can change our values shown in blue
A18: 3. It calculates how much you need and are eligible to borrow (Section 4)
A19: 4. It tells you whether the school will accept the costs you have proposed (Section 5)
A20: 5. It tells you how much of your loan will be retained by the government as origination fee
A21: 6. It calculates the cost of the originations fees and increases the PLUS loan to cover them
A22: 7. You tell us how much you want to borrow (Section 6) You adjust the figures shown in blue
A24: For your information …
A25: The Basis of Costs tab shows you how we calculated the Cost of Attendance
A26: To ensure that your application is as smooth as possible, you must complete the Cost of Attendance spreadsheet and the checklist
A28: We will start the eligibility checking once all required documents as per The Courtauld website's US Loans page have been received

Sheet Basis of Costs
A1: How these Costs are Calculated
A3: Exchange Rate | B3: The exchange rate is set by a review of High Street banks and selecting the worst possible rate and incrementing it by the worst possible commission. This is sufficient to enable loans to be calculated and originated. The rate will not be re-assessed until after the end of the registration period. Should the rate change unfavourably once the course has started, then the whole Cost of Attendance can be reviewed again. .
A5: Room - Rent | B5: First, Check the prices of all halls of residence and select the highest below self-contained suite. Second, search for the average price of a room in a shared flat and for a studio flat in the close area (use the web and general estate agent searches). Select the higher average price of the two scenarios.
A8: Books & Copying | B8: The cost of a single course pack (for the term) applied for each week which is more than sufficient for book purchase.
A10: Travel | B10: Normal cost of one return journey for 7 days or a weekly travel card covering the area, whichever is the greater
A13: 2 return flights | B13: Cost of two BA return flights Heathrow/LA travelling at weekends and rounded up by £100 to nearest £100
A15: PC | B15: Cost of a laptop plus a printer
A17: Visa application | B17: Visa costs plus cost of midweek return next day flight US New York to LA and rounded
A19: PLUS Loan | B19: The balance of the cost of attendance after Sub & Unsub and grossed up to include Origination Fee on Sub & Unsub added to PLUS loan needs and then increased again to include the origination fee charged on PLUS Loans as quoted on Direct Lending website, and reduced by any rebate offered by USDE. This ensures that the cash you receive, after foreign exchange and deduction of origination fees, is the sterling cost of attendance.
A21: Government Fees | B21: Your government takes an origination fee.
A25: Year Dates | B25: These dates are set to minimise the risk of your loan being rejected by overlapping a previous year.
B26: Postgraduates - The loan year will be 365 days
B27: Undergraduates - The loan year will be start of academic year to end of final term
A29: Disbursement Dates | B29: WARNING - THESE DATES ARE EXPECTED AND NOT ACTUAL

Sheet Cost of Attendance
A2: The Courtauld | C2: Cost of Attendance
C3: & Loan Calculation
C4: ="for Academic Year "& 'School DATA'!D6 -> for Academic Year 2024/25
C5: RETAIL (Main Street) RATE - NOT INTERBANK RATE | H5: ='School DATA'!H48 -> 110857 | I5: Max CoA before Interview
C6: This form and exchange rates revised | E6: ='School DATA'!D8 -> 22/08/2024 | H6: ='School DATA'!H50 -> 115544.034 | I6: Max Loan after grossing up for Fees adjustments
C7: Worst possible rate for Retail US Dollar Rate - best guess | D7: ='School DATA'!H44 -> 1.4022 | E7: ='School DATA'!I29 -> 2024-04-24
C8: Next review date for Exchange Rate | E8: ='School DATA'!I30 -> 2024-12-01 | G8: Depend | H8: Choice | I8: Year
C9: No of Weeks for Undergraduates | D9: ='School DATA'!E11 -> 45 | G9: I | H9: N | I9: 1
C10: No of Weeks for Postrgraduates | D10: ='School DATA'!E13 -> 52 | G10: D | H10: Y | I10: 2
I11: 3 or above | M11: ONLY ENTER DATES
A12: Section 1 | C12: COMPLETE ALL YELLOW BOXES ONLY | G12: Private Loan | H12: STANDING DATA | I12: Loan Dates | L12: DISBURSEMENTS | M12: Disburse Dates | N12: VALUES ARE AUTOMATIC
G13: Government Loan | H13: Undergrads | I13: Start | J13: ='School DATA'!D7 -> 16/09/2024 | L13: =COUNT(M13:M19) -> 3 | M13: =IF(('School DATA'!D18>10/10/2010),'School DATA'!D18,"") -> 2024-09-23 | N13: =IF((ISNUMBER(M13)),(E91/L13),"") -> 0
A14: Family Name (Surname) | I14: End | J14: ='School DATA'!D11 -> 2025-07-23 | L14: put 2nd date | M14: =IF(('School DATA'!D19>10/10/2010),'School DATA'!D19,"") -> 2025-01-27 | N14: =IF((ISNUMBER(M14)),(E91/L13),"") -> 0
A15: Given Name (Forename) | H15: Postgrads | I15: Start | J15: ='School DATA'!D7 -> 16/09/2024 | L15: put 3rd date or blank | M15: =IF(('School DATA'!D20>10/10/2010),'School DATA'!D20,"") -> 2025-05-12 | N15: =IF((ISNUMBER(M15)),(E91/L13),"") -> 0
A16: Address Line 1 | I16: End | J16: ='School DATA'!E7 ->  | L16: put 4th date or blank | M16: =IF(('School DATA'!D21>10/10/2010),'School DATA'!D21,"") ->  | N16: =IF((ISNUMBER(M16)),(E91/L13),"") -> 
A17: Address Line 2
A18: Address Line 3
A19: Address Line 4
A20: Zipcode / Postcode
A21: Email | H21: MAXIMUM LOAN LEVELS FOR THIS STU | K21: MAXIMUM LOAN LEVELS AVAILABLE
A22: Date of Birth dd/mm/yyyy | G22: Sub | H22: Unsub Depend | I22: Unsub Ind | K22: Sub | L22: Unsub Depend | M22: Unsub Ind
A23: Full Social Security Number | G23: =IF(D27="Y",0,K23) -> 0 | I23: =IF((D27="N"),M23,0) -> 20500 | J23: postgraduates | K23: 0 | L23: 0 | M23: 20500
A24: Application/Student Number | G24: =IF((AND(D27="Y",D28="N",D30=1)),K24,0) -> 0 | H24: =IF((AND(D27="Y",D31="D",D30=1)),L24,0) -> 0 | I24: =IF((AND(D27="Y",D31="I",D30=1)),M24,0) -> 0 | J24: Undergraduate1 | K24: 3500 | L24: 2000 | M24: 6000
A25: Full name of your course | G25: =IF((AND(D27="Y",D28="N",D30=2)),K25,0) -> 0 | H25: =IF((AND(D27="Y",D31="D",D30=2)),L25,0) -> 0 | I25: =IF((AND(D27="Y",D31="I",D30=2)),M25,0) -> 0 | J25: Undergraduate2 | K25: 4500 | L25: 2000 | M25: 6000
A26: Section 2 | G26: =IF((AND(D27="Y",D28="N",D30>2)),K26,0) -> 0 | H26: =IF((AND(D27="Y",D31="D",D30>2)),L26,0) -> 0 | I26: =IF((AND(D27="Y",D31="I",D30>2)),M26,0) -> 0 | J26: Undergraduate>2 | K26: 5500 | L26: 2000 | M26: 7000
A27: Please answer each question in this section | C27: Is this course for BA? | D27: N | G27: =IF((AND(D27="Y", D28="Y", D29="Y")),K27,0) -> 0 | H27: =IF((AND(D28="Y",D32="D",D31>2)),L27,0) -> 0 | I27: =IF((AND(D27="Y", D28="Y", D29="Y")),M27,0) -> 0 | J27: Law | K27: =K23 -> 0 | L27: =L23 -> 0 | M27: =M23 -> 20500
C28: =IF(D27="N", "Do not adjust this line", "Are you taking a profesional course but at undergraduate level? Only answer Y or N") -> Do not adjust this line | D28: n | G28: =MAX(G23:G27) -> 0 | I28: =MAX(H23:I27) -> 20500 | J28: Max Loan Available | L28: From July 2012 there is no Subsidised Loan for postgraduates
C29: =IF((AND( D27="Y", D28="Y")), "Do you already have another undergraduate degree - answer Y or N", "Do not adjust this line" ) -> Do not adjust this line | D29: n
C30: What will be your year of study - select from the dropbox only | D30: 1 | H30: CONVERTING FEES AND CONTRIBUTIONS TO DOLLARS | L30: Undergrad Courses which could get Postgrad funding
C31: What does your SAR say for "dependancy status" Only answer I or D | D31: I | G31: Rate | H31: Convert £ | I31: Already $ | J31: Actual Loans | L31: Law
C32: What is you SAI Student Aid Index (top right of front page of SAR) Even zero must be entered | D32: 0 | G32: =D7 -> 1.4022 | H32: =D33*G32 -> 0 | I32: =E33 -> 0 | J32: Fees
C33: Enter the Tuition Fees - only write the figures - don't type in the £ sign as it is already formatted | D33: 0 | G33: =G32 -> 1.4022 | H33: =D34*G33 -> 0 | I33: =E34 -> 0 | J33: Sponsors
C34: How much of the tuition fees will be paid to your school by a sponsor (only enter in the $ or £ box - not both) | D34: 0 | E34: 0 | G34: =G33 -> 1.4022 | H34: =D35*G34 -> 0 | I34: =E35 -> 0 | J34: School Aid
C35: How much has already been awarded by this school as a Scholarship or Financial Aid | D35: 0 | G35: =G34 -> 1.4022 | H35: =D36*G35 -> 0 | I35: =E36 -> 0 | J35: Other Aid £UK
C36: How much has been awarded by any other Scholarship or Financial Aid in the UK | D36: 0 | G36: =G34 -> 1.4022 | H36: =D37*G36 -> 0 | I36: =E37 -> 0 | J36: Other Aid $USA
C37: How much has been awarded by any other Scholarship or Financial Aid from the USA | E37: 0 | I37: =SUM(H33:I36) -> 0 | J37: Deduct from "Need"
C38: Is this application for a Private loan (Sallie Mae), please select from this drop-box | D38: Government Loan
H39: CONVERTING WEEKLY COSTS TO DOLLARS
A40: Section 3 | B40: Weekly Essential Costs - School Max Estimates - you can adjust the values but may be asked for proofs of your adjusted costs | G40: UG Weeks | H40: UG Costs | I40: PG Costs | J40: PG Weeke
D41: School's Estimate per week | E41: Your Request | G41: =D9 -> 45 | H41: =E42*G32*G41 -> 0 | I41: =J41*G32*E42 -> 0 | J41: =D10 -> 52
C42: Room - Rent | D42: ='School DATA'!I11 -> 400 | E42: 0 | G42: =D9 -> 45 | H42: =E43*G33*G42 -> 0 | I42: =J42*G33*E43 -> 0 | J42: =J41 -> 52
C43: Board - Food and Power | D43: ='School DATA'!H12+'School DATA'!H13 -> 140 | E43: 0 | G43: =G42 -> 45 | H43: =E44*G32*G43 -> 0 | I43: =J43*G34*E44 -> 0 | J43: =J42 -> 52
C44: Books & Copying | D44: ='School DATA'!H14 -> 20 | E44: 0 | G44: =G43 -> 45 | H44: =E45*G33*G44 -> 0 | I44: =J44*G35*E45 -> 0 | J44: =J43 -> 52
C45: Travelcard/Transport Costs | D45: ='School DATA'!H15 -> 50 | E45: 0 | G45: =G44 -> 45 | H45: =E46*G34*G45 -> 0 | I45: =J45*G36*E46 -> 0 | J45: =J44 -> 52
C46: Personal | D46: ='School DATA'!H16 -> 70 | E46: 0
H48: CONVERTING ANNUAL COSTS TO DOLLARS | K48: Origination Fees
A49: Section 4 | B49: Single Costs for the year - you may adjust or add extras in these columns | D49: School's Estimate per Year | E49: =E41 -> Your Request
B50: you may be asked for proof of your extra needs | G50: =D7 -> 1.4022 | H50: =E51*G50 -> 0 | L50: % Rate | M50: Interest | N50: Final | O50: Actual
C51: Cost of 2 return flights - write here - only in £ | D51: ='School DATA'!H19*2 -> 2900 | E51: 0 | G51: =G50 -> 1.4022 | H51: 0 | K51: Loan Type | M51: Rebate | N51: Rate | O51: Factor
C52: Visa Application and flights to interview | D52: ='School DATA'!H20 -> 500 | E52: 0 | G52: 1.4022 | H52: 0 | K52: Sub Orig Fee | L52: ='School DATA'!D38 -> 1.057 | M52: ='School DATA'!E38 -> 0 | N52: =L52-M52 -> 1.057 | O52: =N52*0.01 -> 0.01057
C53: PC and Printer | D53: ='School DATA'!H21 -> 1200 | E53: 0 | G53: 1.4022 | H53: 0 | K53: Unsub Orig Fee | L53: ='School DATA'!D39 -> 1.057 | M53: ='School DATA'!E39 -> 0 | N53: =L53-M53 -> 1.057 | O53: =N53*0.01 -> 0.01057
C54: ='School DATA'!G22 -> Visa £322 and NHS charge £150.00 | D54: =SUM('School DATA'!H22) -> 472 | E54: 0 | G54: 1.4022 | H54: 0 | K54: PLUS Orig fee | L54: ='School DATA'!D40 -> 4.228 | M54: ='School DATA'!E40 -> 0 | N54: =L54-M54 -> 4.228 | O54: =N54*0.01 -> 0.04228
C55: ='School DATA'!G23 -> Add any other essential costs - write here - only in £ | D55: ='School DATA'!H23 -> 0 | E55: =D55 -> 0 | G55: 1.4022 | H55: 0
C56: ='School DATA'!G24 -> Add any other essential costs - write here - only in £ | D56: ='School DATA'!H24 -> 0 | E56: =D56 -> 0 | G56: 1.4022 | H56: 0
C57: ='School DATA'!G25 -> Add any other essential costs - write here - only in £ | D57: ='School DATA'!H25 -> 0 | E57: =D57 -> 0
H58: FINAL CALCULATIONS | K58: SUB NEED | L58: UNSUB NEED | M58: ORIG FEE NOT INC | N58: ORIG FEE INC
A59: Section 5 | B59: YOUR ESTIMATED FINAL COSTS & US ED DEPT MAXIMUM LOAN ELIGIBILITY - YOU MAY BORROW LESS IF YOU CHOOSE | G59: Requested Cost of Attendance (Values rounded) | H59: $ | J59: CoA | K59: =H69 -> 0
C60: =G59 -> Requested Cost of Attendance (Values rounded) | D60: =H59 -> $ | G60: Tuition Fees | H60: =ROUND(H32,0) -> 0 | J60: Less EFC | K60: =-D32 -> 0
C61: =G60 -> Tuition Fees | D61: =H60 -> 0 | G61: Room | H61: =ROUND((IF(D27="N",I41,H41)),0) -> 0 | J61: Need for Sub | K61: =IF((SUM(K59:K60)>0),(SUM(K59:K60)),0) -> 0 | N61: =IF((K61<K63),(K63-K61),0) -> 0
C62: =G61 -> Room | D62: =H61 -> 0 | G62: Board | H62: =ROUND((IF(D27="N",I42,H42)),0) -> 0 | J62: Sub available | K62: =G28 -> 0
C63: Board | D63: 0 | G63: Books | H63: =ROUND((IF(D27="N",I43,H43)),0) -> 0 | J63: Sub Calc | K63: =IF((((K61/(100-N52))*100)<K62),((K61/(100-N52))*100),K62) -> 0 | M63: =IF((N61>0),0,(K63*O52)) -> 0
C64: Books | D64: 0 | G64: Travel | H64: =ROUND((IF(D27="N",I44,H44)),0) -> 0
C65: Travel | D65: 0 | G65: Personal | H65: =ROUND((IF(D27="N",I45,H45)),0) -> 0 | J65: Need for Unsub | L65: =IF((N61>0),(K59+N61-K63),(K59-K63+M63)) -> 0 | N65: =IF((((L67-L65)>0)),(L67-L65),0) -> 0
C66: Personal | D66: 0 | G66: Other Essential Costs | H66: =SUM(H50:H56) -> 0 | J66: Unsub available | L66: =G28+I28-K63 -> 20500
C67: Other Essential Costs | D67: 0 | G67: Total Cost of Attendance | H67: =SUM(H60:H66) -> 0 | J67: Unsub Calc | L67: =IF((((L65/(100-N53))*100)<L66),((L65/(100-N53))*100),L66) -> 0 | M67: =+IF((N65>0),0,(L67*O53)) -> 0
C68: Total Cost of Attendance | D68: 0 | G68: Adjust for Sponsorship, Awards or other Aid | H68: =ROUND((-I37),0) -> 0
C69: Adjust for Sponsorship, Awards or other Aid | D69: 0 | G69: Total Requested Cost of Attendance | H69: =ROUND((SUM(H67:H68)),0) -> 0 | J69: PLUS NEED
A70: =IF((D38="Private Loan"),"Private loan requested","") ->  | C70: =G69 -> Total Requested Cost of Attendance | D70: 0 | J70: Need for PLUS | K70: =IF((N65=0),(K59-K63-L67+M63+M67),0) -> 0
C72: =IF((D38=G12),"Maximum Private (Sallie Mae) loan we will certify is"," ") ->  | D72: =IF((D38=G12),D80," ") -> 
C73: =IF((D38=G12),"As you said (in cell D38) that you are seeking a Sallie Mae loan there is no need to complete anything below this line."," ") ->  | G73: Maximum Govt. Loan you can borrow | H73: $ | J73: PLUS Available | K73: =H5-K63-L67 -> 110857
G74: You could have borrowed these Govt. Loans
C75: =IF((D38=G12),G74,G73) -> Maximum Govt. Loan you can borrow | G75: Subsidised - Adjusted by EFC | H75: =K63 -> 0 | J75: PLUS Calc | K75: =IF((((K70/(100-N54)*100))<K73),((K70/(100-N54)*100)),(((K73+M63+M67)/(100-N54))*100)) -> 0
C76: =IF((D27="N"),L28,G75) -> From July 2012 there is no Subsidised Loan for postgraduates | D76: =H75 -> 0 | E76: =IF((N61>0),"Grossed up for fees","") ->  | G76: Unsubsudised | H76: =L67 -> 0
C77: Unsubsudised | D77: =H76 -> 0 | E77: =IF((N65>0),"Grossed up for fees","") ->  | G77: =IF((J78=2),K78,(IF((H69>H5),"PLUS Loan to fulfil this CoA",""))) ->  | I77: =IF((K73<K70),K70,"") ->  | J77: Indep Undergrad Score
E78: =I77 ->  | G78: =IF((J78=2),"","Maximum PLUS Loan allowed for this CoA") -> Maximum PLUS Loan allowed for this CoA | H78: =IF((J78=2),"",(IF((K70<K73),(K70-M67-M63),K73))) -> 0 | J78: =(IF((D27="Y"),1,0))+(IF((D31="I"),1,0)) -> 1 | K78: Independent Undergraduates are not eligible for a PLUS Loan
C79: Maximum PLUS Loan allowed for this CoA | D79: =H78 -> 0 | G79: Total Eligible before adjustment for Fees | H79: =SUM(H75:H78) -> 0
C80: Total Eligible before adjustment for Fees | D80: =H79 -> 0
A82: Section 6 | C82: SCHOOL COMMENT ON YOUR PROPOSED COSTS & ELIGIBLE LOANS | H82: Qualify 1 | I82: THE COSTS YOU HAVE SUGGESTED ARE TOO HIGH TO BE ACCEPTABLE
C83: =IF(H67>H5, I82," ") ->  | H83: Qualify 2 | I83: Provide evidence of your needs for any increase to PLUS to be considered or borrow less in Section 6
C84: =IF(H67>H5, I83,I84) -> You are allowed to borrow up to the values above | H84: OK Statement | I84: You are allowed to borrow up to the values above
A86: Section 7 | C86: =IF((D38=G12),"THIS SECTION DOES NOT APPLY TO SALLIE MAE LOANS","YOU TELL US HOW MUCH WOULD YOU LIKE TO BORROW - YOU MAY REDUCE THE FIGURES IN BLUE") -> YOU TELL US HOW MUCH WOULD YOU LIKE TO BORROW - YOU MAY REDUCE THE FIGURES IN BLUE | G86: Max Loans Allowed Adjusted for Fees | H86: After Origination Fees You Get
A87: Max Loans Allowed Adjusted for Fees | B87: Government Fees *** Deducted | C87: State how much you would like to borrow for each loan type - adjust the figures in blue in the "Your Request" column | D87: Your Request - you may reduce these values | E87: After Origination Fees You Get | G87: =ROUND(K63,0) -> 0 | H87: =ROUND(((G87*(1-O52))),0) -> 0
A88: =IF((D38=G12),0,G87) -> 0 | B88: =O52 -> 0.01057 | C88: =C76 -> From July 2012 there is no Subsidised Loan for postgraduates | D88: 0 | E88: =ROUND(((D88*(1-O52))),0) -> 0 | G88: =ROUND(L67,0) -> 0 | H88: =ROUND(((G88*(1-O53))),0) -> 0
A89: =IF((D38=G12),0,G88) -> 0 | B89: =O53 -> 0.01057 | C89: Unsubsudised | D89: 0 | E89: =ROUND(((D89*(1-O53))),0) -> 0 | G89: =IF((J78=2),"",(ROUND(K75,0))) -> 0 | H89: =ROUND(((G89*(1-O54))),0) -> 0
A90: =IF((D38=G12),0,G89) -> 0 | B90: =O54 -> 0.04228 | C90: =IF((J78=2),K78,"PLUS Loan (Adjusted up to include all fees)") -> PLUS Loan (Adjusted up to include all fees) | D90: 0 | E90: =ROUND(((D90*(1-O54))),0) -> 0 | G90: =SUM(G87:G89) -> 0 | H90: =SUM(H87:H89) -> 0
A91: =IF((D38=G12),0,G90) -> 0 | C91: Total (after rounding, may be slightly higher than total of section 4) | D91: =SUM(D88:D90) -> 0 | E91: =SUM(E88:E90) -> 0 | H91: OK Statement 1 | I91: We will check everything you have provided with the USDE data and regulations
A92: Section 8 | C92: =IF((D91<(H5*1.04)),I91,I93) -> We will check everything you have provided with the USDE data and regulations | H92: OK Statement 2 | I92: If everything is correct we will originate your loans and issue a certificate for visa application
C93: =IF((D91<(H5*1.04)),I92,I94) -> If everything is correct we will originate your loans and issue a certificate for visa application | H93: Qualify 1 | I93: You must provide evidence of your costs/needs before we can process your application
H94: Qualify 2
A95: Section 9 Government Fees | B95: =B88 -> 0.01057 | C95: =C88&" Origination Fee of "&L52&"% less Interest Rebate of "&M52&"%" -> From July 2012 there is no Subsidised Loan for postgraduates Origination Fee of 1.057% less Interest Rebate of 0%
B96: =B89 -> 0.01057 | C96: =C89&" Origination Fee of "&L53&"% less Interest Rebate of "&M53&"%" -> Unsubsudised Origination Fee of 1.057% less Interest Rebate of 0%
B97: 0.04228 | C97: =C90&" Origination Fee of "&L54&"% less Interest Rebate of "&M54&"%" -> PLUS Loan (Adjusted up to include all fees) Origination Fee of 4.228% less Interest Rebate of 0%

Sheet School DATA (hidden)
B1: FOR SCHOOL USE ONLY | D1: DON'T TOUCH THE BLUE BOXES - They are calculations going to other parts of this workbook
D2: School to Complete ONLY the yellow boxes
D3: SCHOOL INFORMATION | H3: MONEY INFORMATION
D5: Academic Year Calculations | H5: Calculates max allowed before prroof of costs needed
A6: 1 | B6: Which Academic Year is this | C6: Year format yyyy/yy | D6: 2024/25 | F6: 6 | G6: Complete this Fee Estimate
C7: Start day of the year | D7: 16/09/2024 | E7: =D7+363 ->  | G7: Avg highest Tuition Fee charged in London for MSc | H7: 31440 | J7: =H7 -> 31440
C8: When did you complete this form | D8: 22/08/2024
B9: Complete these dates | F9: 7 | G9: Complete these Cost Estimates which are PER WEEK | H9: Calculates school CoA
B10: When do think your undergraduates start to arrive (occupy their bedroom) | D10: 2024-09-09 | E10: Undergrad weeks | G10: What is the highest charge for your halls of residence per week | H10: 400
B11: What is the date of your last Bachelors' graduation ceremony in the summer | D11: 2025-07-23 | E11: =ROUND(((MAX(D11:D12)-D10)/7),0) -> 45 | G11: What is your best estimate at the high-end going rate for a room per week in the area | H11: 350 | I11: =MAX(H10:H11) -> 400
B12: AND/OR | C12: official end of summer term - ONLY if earlier | E12: Postgrad weeks | G12: What is your best estimate for electricity/gas for a week (use our own home direct debits?) | H12: 70
E13: 52 | G13: What is your normal family shopping for a week and adjust for one adult | H13: 70
A14: 2 | B14: What will be the dates your students get their disbursements | G14: What is your best estimate for book buying or photocopying or course packs per week | H14: 20
B15: Your dates in COD might be earlier [to allow processing time] | G15: What is your best estimate at travel costs for the area for a week | H15: 50
B16: Only put in the date against each term | G16: What is your estimate for enough pocket money per week | H16: 70 | I16: =SUM(H12:H16) -> 280 | J16: =(SUM(I11:I16))*E13 -> 35360
B17: Do NOT put in a date where you don't have a disbursement | D17: Payment periods - terms
B18: Term 1 [could be autumn or 1st semester] | D18: 2024-09-23 | E18: =D19-1 -> 2025-01-26 | F18: 8 | G18: Look up these costs on the web
B19: Term 2 [could be spring - after Christmas - or 2nd semester] | D19: 2025-01-27 | E19: =IF((D20>0),(D20-1),(MAX(D10:D11))) -> 2025-05-11 | G19: midweek return flights with BA from Los Angeles to London | H19: 1450 | J19: =H19*2 -> 2900
B20: Term 3 [could be summer - after Easter] | D20: 2025-05-12 | E20: =IF((D21>0),(D21-1),(MAX(D11:D12))) -> 2025-07-23 | G20: midweek return flight for visa interview Los Angeles to New York | H20: 500
B21: Term 4 [could be the writing up term after May/June exams if you have such a term] | E21: =IF((D22>0),(D22-1),(MAX(D11:D12))) -> 2025-07-23 | G21: Powerful laptop and printer [Apple MacBook - PC World March 2022] | H21: 1200
E22: =E18 -> 2025-01-26 | F22: PG T1 | G22: Visa £322 and NHS charge £150.00 | H22: 472
A23: 3 | B23: What are the initials of your staff allowed to sign visa letters USE BLOCK CAPS | E23: =IF((D20>1),(D20-1),E7) -> 2025-05-11 | F23: PG T2 | G23: Add any other essential costs - write here - only in £ | H23: 0
C24: Only put in the staff you authorise | E24: =IF((D21>1),(D21-1),E7) ->  | F24: PG T3 | G24: Add any other essential costs - write here - only in £ | H24: 0
C25: Do not put in initials where you don't have staff | E25: =IF((D22>1),(D22-1),E7) ->  | F25: PG T4 | G25: Add any other essential costs - write here - only in £ | H25: 0 | J25: =SUM(H20:H25) -> 2172
C26: person 1 | D26: AH
C27: person 2 | D27: KA
C28: person 3 | D28: LD | F28: 9 | G28: Go to the banks near you and collect their exchange rates | I28: Calculates exchange rate for CoA
C29: person 4 | D29: SP | G29: When did you do this | H29: Write in the date | I29: 2024-04-24 | J29: LONDON
C30: person 5 | D30: RB | G30: When - long after the first disbursement - will you review the exchange rate | H30: Write in the date | I30: 2024-12-01
C31: person 6 | G31: If any bank showed a commission rate then enter it against that bank | H31: Bank Number | I31: Rate | J31: Commission %
C32: person 7 | G32: Do not write the name of any bank | H32: XE | I32: 1.24461
C33: person 8 | H33: Post Office | I33: 1.2215
H34: M&S | I34: 1.2215
A35: 4 | B35: These are 01 Oct 2014 - If they've changed, go to the USDE website and check origination/rebates for each loan type and adjust below | H35: Bank 4
B36: Be absolutely sure you are looking at the right year | D36: Calculates gross loan to cash | G36: only 6 banks would accept or exchange dollars | H36: Bank 5
B37: Rate per https://studentaid.gov/understand-aid/types/loans/interest-rates | C37: Loan Type | D37: Origination Fee % | E37: Rebate % | H37: Bank 6
C38: Subsidised Loans | D38: 1.057 | E38: 0 | H38: Bank 7
C39: Unsubsidised Loans | D39: 1.057 | E39: 0 | H39: Bank 8
C40: PLUS Loans | D40: 4.228 | E40: 0 | H40: Bank 9
C41: Worst Fee Rate | D41: =MAX(D38:D40) -> 4.228 | H41: Bank 10
H42: Worst case rates | I42: =MAX(I32:I41) -> 1.24461 | J42: =MAX(J32:J41) -> 0
A43: 5 | B43: These are 15/16 - If you know levels have changed, go to the USDE website and find the loan levels for each type of student
B44: The information in the FSA Handbook is confusing so use another site to confirm details | G44: Worst combination goes to the CoA | H44: 1.4022
D45: Loan values eligible
B46: Undergrads | C46: Subsidised | D46: Dependent Unsubsidised | E46: Independent Unsubsidised | G46: Worst case costs at worst exchange | H46: =ROUND(((SUM(J7:J25))*H44),0) -> 100779 | J46: Select
B47: Year 1 | C47: 3500 | D47: 2000 | E47: 6000 | G47: and inflated by 10% | H47: =ROUND((H46*0.1),0) -> 10078 | J47: Federal Direct Subsidised Loan
B48: Year 2 | C48: 4500 | D48: 2000 | E48: 6000 | H48: =SUM(H46:H47) -> 110857 | J48: Federal Direct Unsubsidised Loan
B49: Year 3 | C49: 5500 | D49: 2000 | E49: 7000 | G49: plus worst origination rates | H49: =H48/100*D41 -> 4687.03396 | J49: Federal Direct PLUS (Parent/Graduate) Loans.
B50: Year 4 | C50: 5500 | D50: 2000 | E50: 7000 | G50: Max Loans allowed before review | H50: =SUM(H48:H49) -> 115544.034
B51: Postgrads | C51: 0 | D51: 0 | E51: 20500
A54: 10 | B54: Calculating fields for late starters - do not adjust these fields
C55: Start | D55: End | E55: weeks
B56: PG | C56: =#REF! ->  | D56: =E7 ->  | E56: =ROUND(((D56-C56)/7),0) -> 
B57: UG | C57: =C56 ->  | D57: =D11 -> 2025-07-23 | E57: =ROUND(((D57-C57)/7),0) -> 

Sheet Visa Letter (Office use only) (hidden)
A2: ='Cost of Attendance'!C15&" "&'Cost of Attendance'!C14 ->  | B2: The Courtauld
A3: ='Cost of Attendance'!C16 -> 0
A4: ='Cost of Attendance'!C17 -> 0
A5: ='Cost of Attendance'!C18 -> 0
A6: ='Cost of Attendance'!C19 -> 0
A7: ='Cost of Attendance'!C20 -> 0
A9: Notification of Student Loan
A10: ='Cost of Attendance'!C4 -> for Academic Year 2024/25
A13: This is to certify that
A15: Student Name | B15: ='Cost of Attendance'!C15&" "&'Cost of Attendance'!C14 -> 
A16: Date of Birth | B16: ='Cost of Attendance'!C22 -> 00:00:00
A17: Student/Applicant ID | B17: ='Cost of Attendance'!C24 -> 0
A18: Has been accepted in a degree-granting programme(or otherwise eligible programme) at our School
A19: We participate in the William D. Ford Federal Direct Loan (Direct Loan) Program administered by the United States (U.S.) Department of Education. Eligible students from the U.S. who attend our school may borrow through the Direct Loan Program. Undergraduate students and graduate/professional students may receive Direct Subsidized Loans and Direct Unsubsidized Loans. Graduate/professional students and parents may receive Direct PLUS Loans.
A21: Based on our calculation of the student’s financial needs and Direct Loan eligibility for the loan period
A22: Start Date | B22: 2024-09-16
A23: End Date | B23: 2025-09-26
A25: The student (or, in some cases, the student’s parent) will receive the following Direct Loan awards
A26: which come from the US Dept of Education and are administered through this school.
A27: Loan Type | B27: Loan Amount
A28: Direct Subsidized Loan | B28: ='Cost of Attendance'!E88 -> 0
A29: Direct Unsubsidized Loan | B29: ='Cost of Attendance'!E89 -> 0
A30: Direct PLUS Loan | B30: ='Cost of Attendance'!E90 -> 0
A31: Total | B31: ='Cost of Attendance'!E91 -> 0
A33: The disbursement dates are as follows:
A34: ='Cost of Attendance'!M13 -> 2024-09-23 | B34: ='Cost of Attendance'!N13 -> 0
A35: ='Cost of Attendance'!M14 -> 2025-01-27 | B35: ='Cost of Attendance'!N14 -> 0
A36: ='Cost of Attendance'!M15 -> 2025-05-12 | B36: ='Cost of Attendance'!N15 -> 0
A37: =IF(('Cost of Attendance'!M16>'Cost of Attendance'!J15),'Cost of Attendance'!M16,"") ->  | B37: =IF(('Cost of Attendance'!N16>'Cost of Attendance'!K15),'Cost of Attendance'!N16,"") -> 
A38: Total | B38: =SUM(B34:B37) -> 0
A40: This certificate has been issued by Alex Hawkins at The Courtauld Institute of Art, and can be verified by emailing alex.hawkins@courtauld.ac.uk
A43: Date Issued | B43: =TODAY() -> 2024-08-22
A45: Please note: This is a summary of loans originated, however this is not a guarantee of Federal student loans
